bitfinex-derivatives/quotes_SOLF0:USTF0_20241027
["timestamp","ask_amount","ask_price","bid_price","bid_amount"]
[1730071117264,4.02,177.63,177.55,1.41000498]
[1730071117471,2.8192,177.56,177.53,2.8195]
[1730071117768,2.8192,177.56,177.54,6.42688337]
[1730071118062,2.8192,177.56,177.53,2.8195]
[1730071118063,2.8192,177.56,177.55,1.41003548]
[1730071119562,2.8193,177.55,177.53,2.8195]
[1730071119763,2.8193,177.55,177.54,1.41003548]
[1730071120066,2.8193,177.55,177.53,2.8195]
[1730071122762,2.8187,177.59,177.56,2.8191]
[1730071123056,4.02,177.63,177.54,4.02]
[1730071123262,4.02,177.63,177.55,1.2027]
[1730071123460,4.02,177.63,177.58,2.8187]
[1730071124061,4.02,177.65,177.55,1.2027]
[1730071124256,2.8189,177.58,177.55,1.2027]
[1730071124761,2.8189,177.58,177.56,6.4211883]
[1730071124954,2.8181,177.63,177.57,1.40980896]
[1730071125157,4.02,177.65,177.55,4.0219]
[1730071125361,4.02,177.65,177.56,6.42148117]
[1730071125557,2.8188,177.58,177.57,1.40983076]
[1730071125758,4.02,177.61,177.53,2.8196]
[1730071125963,4.02,177.6,177.54,6.42191637]
[1730071126162,2.8192,177.56,177.55,6.42191637]
[1730071130265,2.8192,177.56,177.55,1.40988507]
[1730071130463,2.8192,177.56,177.55,6.42092791]
[1730071133868,2.8192,177.56,177.54,2.8194]
[1730071134169,2.8192,177.56,177.55,6.41953639]
[1730071135158,2.8192,177.56,177.55,1.40988429]
[1730071137769,2.8192,177.56,177.54,2.8194]
[1730071137979,2.8192,177.56,177.55,1.40991753]
[1730071138974,4.02,177.63,177.57,2.8189]
[1730071139370,2.8186,177.6,177.57,2.8189]
[1730071139764,4.02,177.63,177.57,2.8189]
[1730071139970,2.8187,177.59,177.57,2.8189]
[1730071140570,4.02,177.63,177.55,4.02]
[1730071140767,4.02,177.63,177.52,1.2377]
[1730071140768,4.02,177.63,177.52,5.2577]
[1730071140968,4.02,177.63,177.53,5.00573475]
[1730071141169,4.02,177.63,177.54,1.40997885]
[1730071141373,4.02,177.63,177.55,1.40997885]
[1730071141564,4.02,177.63,177.54,2.8194]
[1730071141767,4.02,177.63,177.55,1.40995667]
[1730071141970,4.02,177.63,177.54,2.8194]
[1730071142171,2.8191,177.57,177.54,2.8194]
[1730071142373,2.8191,177.57,177.55,1.40995654]
[1730071142673,2.8191,177.57,177.54,2.8194]
[1730071142872,2.8191,177.57,177.55,1.40995667]
[1730071143074,2.8191,177.57,177.54,2.8194]
[1730071143268,4.02,177.63,177.52,5.2577]
[1730071143269,2.8193,177.56,177.55,1.40995785]
[1730071144477,2.8193,177.56,177.53,2.8195]
[1730071144777,2.8193,177.56,177.54,1.40998239]
[1730071144979,2.8193,177.56,177.53,2.8195]
[1730071145279,2.8193,177.56,177.54,1.40998252]
[1730071145481,2.8193,177.56,177.53,2.8195]
[1730071145780,2.8193,177.56,177.54,1.40998866]
[1730071146077,2.8193,177.56,177.53,2.8195]
[1730071146272,2.8193,177.56,177.54,1.40998252]
[1730071146471,2.8193,177.56,177.53,2.8195]
[1730071147282,2.8193,177.55,177.53,2.8195]
[1730071148683,2.8193,177.55,177.54,1.4098994]
[1730071149581,2.8195,177.54,177.52,2.8197]
[1730071149776,4.02,177.59,177.53,1.41001215]
[1730071149976,4.02,177.59,177.52,2.8197]
[1730071150180,2.8194,177.55,177.53,1.41001215]
[1730071150377,2.8194,177.55,177.52,2.8197]
[1730071150683,2.8194,177.55,177.53,1.41001097]
[1730071150882,2.8194,177.55,177.52,2.8197]
[1730071151082,2.8194,177.55,177.53,1.41001097]
[1730071151280,2.8194,177.55,177.54,1.41001097]
[1730071151671,2.8194,177.55,177.52,2.8197]
[1730071151876,2.8194,177.55,177.53,1.41005172]
[1730071152085,2.8194,177.55,177.52,2.8197]
[1730071152587,2.8194,177.55,177.53,1.41005398]
[1730071152888,2.8194,177.55,177.52,2.8197]
[1730071153081,2.8194,177.55,177.53,1.41005675]
[1730071153286,2.8194,177.55,177.52,2.8197]
[1730071153486,2.8194,177.55,177.53,1.41005675]
[1730071153687,2.8194,177.55,177.52,2.8197]
[1730071153888,2.8194,177.55,177.53,1.4100506]
[1730071154187,2.8194,177.55,177.52,2.8197]
[1730071154391,2.8194,177.55,177.53,1.41004446]
[1730071154689,2.8194,177.55,177.52,2.8197]
[1730071154880,2.8194,177.55,177.53,1.41004446]
[1730071155082,2.8194,177.55,177.52,2.8197]
[1730071155289,2.8194,177.55,177.53,1.41004446]
[1730071155591,2.8194,177.55,177.52,2.8197]
[1730071155783,2.8194,177.55,177.53,1.4100506]
[1730071155976,2.8194,177.55,177.52,2.8197]
[1730071156181,2.8194,177.55,177.53,1.4100506]
[1730071156384,2.8194,177.55,177.52,2.8197]
[1730071156584,2.8194,177.55,177.53,1.4100506]
[1730071156785,2.8194,177.55,177.52,2.8197]
[1730071157088,2.8194,177.55,177.53,1.4100506]
[1730071157289,2.8194,177.55,177.52,2.8197]
[1730071157489,2.8194,177.55,177.53,1.4100506]
[1730071157691,2.8194,177.55,177.52,2.8197]
[1730071157994,2.8194,177.55,177.53,1.41004446]
[1730071158194,2.8194,177.55,177.52,2.8197]
[1730071158397,2.8194,177.55,177.53,1.41004328]
[1730071158595,2.8194,177.55,177.52,2.8197]
[1730071158803,2.8194,177.55,177.53,1.41004328]
[1730071159097,2.8194,177.55,177.52,2.8197]
[1730071159292,2.8194,177.55,177.53,1.41004446]
[1730071159494,2.8194,177.55,177.53,2.8196]
[1730071162504,2.8194,177.55,177.52,2.8197]
[1730071162699,2.8194,177.55,177.53,1.4100506]
[1730071163000,4.02,177.59,177.48,12.04154502]
[1730071163192,2.5073,177.58,177.49,6.42365543]
[1730071163398,2.5073,177.58,177.5,1.41017922]
[1730071163701,2.82,177.51,177.48,2.8203]
[1730071163901,2.82,177.51,177.49,6.42421831]
[1730071164097,2.82,177.51,177.48,2.8203]
[1730071164098,2.82,177.51,177.5,1.41023718]
[1730071164295,2.82,177.51,177.48,2.8203]
[1730071164501,2.82,177.51,177.49,6.42371763]
[1730071164693,2.82,177.51,177.48,2.8203]
[1730071164906,2.82,177.51,177.49,1.41023629]
[1730071165102,2.82,177.51,177.48,2.8203]
[1730071165299,2.82,177.51,177.49,1.41023629]
[1730071165598,2.82,177.51,177.48,2.8203]
[1730071165799,2.82,177.51,177.49,1.41023629]
[1730071166002,2.82,177.51,177.48,2.8203]
[1730071169896,4.02,177.54,177.47,2.8205]
[1730071170094,4.02,177.54,177.48,1.41033447]
[1730071170294,4.02,177.54,177.44,4.84501091]
[1730071170494,4.02,177.54,177.43,2.4302]
[1730071170495,2.82,177.51,177.43,5.2538]
[1730071170699,4.02,177.54,177.43,4.02]
[1730071170904,4.9323,177.54,177.43,4.02]
[1730071171406,6.48475303,177.53,177.37,1.1986]
[1730071171608,5.6393,177.53,177.38,5.4310642]
[1730071171803,4.9323,177.54,177.38,6.842]
[1730071172109,5.6396,177.52,177.38,6.842]
[1730071172406,4.9323,177.54,177.35,2.444]
[1730071172407,2.4893,177.51,177.35,6.464]
[1730071172601,4.02,177.5,177.37,2.8221]
[1730071174305,4.02,177.49,177.35,6.464]
[1730071175110,4.02,177.48,177.35,6.464]
[1730071175798,4.02,177.49,177.35,6.464]
[1730071176106,5.2951,177.51,177.35,6.464]
[1730071176311,2.8204,177.49,177.45,2.8208]
[1730071176502,5.2951,177.51,177.45,2.8208]
[1730071176697,5.2951,177.51,177.42,4.02]
[1730071176903,5.2951,177.51,177.44,2.821]
[1730071177803,5.2951,177.51,177.42,4.02]
[1730071178007,2.8207,177.47,177.43,2.8212]
[1730071181907,5.2951,177.51,177.42,6.8413]
[1730071183112,2.821,177.45,177.42,2.8213]
[1730071185707,5.2951,177.51,177.4,4.02]
[1730071185708,5.2951,177.51,177.4,6.8416]
[1730071186108,5.2951,177.51,177.4,4.02]
[1730071186509,5.2951,177.51,177.41,2.8214]
[1730071188807,5.2951,177.51,177.38,4.02]
[1730071189510,5.2951,177.51,177.4,2.8216]
[1730071194211,5.2951,177.51,177.37,4.02]
[1730071194414,5.6405,177.5,177.39,2.8218]
[1730071194913,2.8207,177.46,177.39,2.8218]
[1730071195214,4.02,177.45,177.39,2.8218]
[1730071196720,1.2751,177.51,177.36,4.02]
[1730071197019,2.8207,177.47,177.36,4.02]
[1730071197406,5.2951,177.51,177.36,4.02]
[1730071198620,2.8206,177.47,177.44,2.8209]
[1730071201617,2.8209,177.45,177.4,4.02]
[1730071203017,2.8209,177.45,177.42,2.8213]
[1730071207225,4.02,177.47,177.4,2.8217]
[1730071211631,4.02,177.47,177.37,4.02]
[1730071211933,4.02,177.47,177.39,2.8217]
[1730071212830,2.8214,177.43,177.4,2.8216]
[1730071213024,4.02,177.47,177.4,2.8216]
[1730071214329,2.8214,177.42,177.4,2.8216]
[1730071214835,4.02,177.47,177.4,2.8216]
[1730071215027,2.8213,177.43,177.4,2.8216]
[1730071215533,2.8214,177.42,177.4,2.8216]
[1730071215728,6.9153,177.51,177.42,2.8214]
[1730071215923,4.02,177.5,177.42,2.8214]
[1730071216133,2.8212,177.44,177.38,1.1939]
[1730071216330,4.02,177.5,177.41,2.8215]
[1730071216534,4.02,177.5,177.38,1.1939]
[1730071217131,2.8207,177.47,177.4,2.8217]
[1730071217339,4.02,177.46,177.4,2.8217]
[1730071217636,2.8213,177.43,177.4,2.8217]
[1730071217937,1.2751,177.51,177.25,8.4721]
[1730071218137,5.6412,177.47,177.36,2.8222]
[1730071218341,4.02,177.46,177.36,2.8222]
[1730071218538,5.193,177.46,177.36,2.8222]
[1730071218929,5.193,177.46,177.33,4.02]
[1730071219132,2.8218,177.4,177.37,2.8221]
[1730071220229,1.553,177.42,177.37,2.8221]
[1730071221939,2.8218,177.4,177.37,2.8221]
[1730071223139,1.553,177.42,177.37,2.8221]
[1730071223341,2.8219,177.39,177.37,2.8221]
[1730071223945,2.8219,177.39,177.33,4.02]
[1730071224139,2.8219,177.39,177.36,2.8223]
[1730071224644,2.8219,177.39,177.34,2.8225]
[1730071224844,2.8219,177.39,177.33,4.02]
[1730071226235,2.8219,177.39,177.37,2.8222]
[1730071232858,1.553,177.42,177.33,4.02]
[1730071233053,2.822,177.38,177.36,2.8223]
[1730071237862,1.553,177.42,177.35,2.8224]
[1730071238060,1.553,177.42,177.32,6.4026]
[1730071238361,1.553,177.42,177.33,4.85358395]
[1730071238551,1.553,177.42,177.32,2.3826]
[1730071238755,1.553,177.42,177.33,4.85355231]
[1730071239061,1.553,177.42,177.28,121.995015]
[1730071239260,1.553,177.42,177.29,4.85528655]
[1730071239466,1.553,177.42,177.14,19.53982728]
[1730071239467,2.8232,177.31,177.28,2.8235]
[1730071239649,6.5573,177.41,177.26,4.02]
[1730071239856,4.02,177.4,177.27,6.06309919]
[1730071240058,2.8227,177.34,177.28,4.85379919]
[1730071240355,4.02,177.33,177.23,1.2482]
[1730071240556,2.823,177.32,177.28,2.8235]
[1730071241464,2.8232,177.31,177.28,2.8235]
[1730071243463,3.97436753,177.39,177.31,2.8231]
[1730071243464,2.822,177.38,177.31,2.8231]
[1730071243667,2.822,177.38,177.28,4.02]
[1730071243668,4.02,177.42,177.29,2.3346]
[1730071244263,6.8413,177.43,177.33,2.8227]
[1730071244469,4.02,177.43,177.34,1.1707]
[1730071244967,2.8219,177.39,177.34,1.1707]
[1730071246369,2.8219,177.39,177.36,2.8223]
[1730071248281,4.02,177.43,177.34,1.1707]
[1730071248468,2.8221,177.38,177.34,3.9932]
[1730071248660,4.02,177.39,177.3,4.02]
[1730071249066,2.8222,177.37,177.33,2.8227]
[1730071249367,4.02,177.39,177.33,2.8227]
[1730071250167,2.8224,177.36,177.33,2.8227]
[1730071250367,2.8224,177.36,177.32,2.8229]
[1730071250569,4.02,177.39,177.29,6.3546]
[1730071250971,4.02,177.39,177.31,2.823]
[1730071252067,2.8228,177.34,177.31,2.823]
[1730071254480,4.02,177.39,177.31,2.823]
[1730071254673,2.8228,177.33,177.31,2.823]
[1730071255481,2.8224,177.36,177.33,2.8226]
[1730071256669,9.98713995,177.46,177.13,18.79572804]
[1730071256670,5.6454,177.34,177.13,18.79572804]
[1730071256872,59.7751,177.33,177.14,2.4774]
[1730071257471,2.8237,177.28,177.16,2.8254]
[1730071257678,59.7751,177.33,177.16,2.8254]
[1730071257679,4.02,177.27,177.16,2.8254]
[1730071258181,2.8246,177.22,177.16,2.8254]
[1730071258381,61.4009,177.33,177.18,2.8251]
[1730071258382,4.02,177.23,177.18,2.8251]
[1730071259273,6.8444,177.23,177.18,2.8251]
[1730071259468,4.02,177.23,177.18,2.8251]
[1730071260483,4.02,177.24,177.14,2.4774]
[1730071260677,4.02,177.25,177.14,2.4774]
[1730071261071,55.7551,177.33,177.14,2.4774]
[1730071261381,2.8239,177.27,177.14,2.4774]
[1730071261678,4.02,177.26,177.14,2.4774]
[1730071261877,4.02,177.26,177.15,1.2223]
[1730071262382,4.02,177.26,177.21,2.8247]
[1730071262882,4.02,177.26,177.2,2.8247]
[1730071263182,4.02,177.26,177.17,4.02]
[1730071263382,6.8439,177.26,177.2,2.8247]
[1730071263777,6.8439,177.26,177.17,4.02]
[1730071263978,4.02,177.26,177.15,1.2223]
[1730071264179,2.8241,177.25,177.16,4.02]
[1730071264576,4.02,177.26,177.16,4.02]
[1730071265283,2.8241,177.25,177.2,2.8248]
[1730071266077,4.02,177.26,177.06,60.514]
[1730071266078,2.8244,177.23,177.06,60.514]
[1730071266287,2.8244,177.23,177.07,8.725036]
[1730071266483,4.02,177.22,177.08,1.038036]
[1730071267184,4.02,177.22,177.18,2.825]
[1730071268488,4.02,177.22,177.14,1.1616]
[1730071269184,4.02,177.22,177.17,2.8253]
[1730071269386,4.02,177.22,177.14,1.1616]
[1730071269787,4.02,177.22,177.18,2.8251]
[1730071270178,4.02,177.22,177.11,4.02]
[1730071270378,6.8447,177.22,177.16,2.8254]
[1730071271284,4.02,177.22,177.11,4.02]
[1730071271892,6.8446,177.22,177.16,2.8254]
[1730071272192,6.8446,177.22,177.11,4.02]
[1730071272492,2.8247,177.21,177.16,2.8254]
[1730071273288,4.02,177.22,177.11,4.02]
[1730071273494,4.2,177.23,177.11,4.02]
[1730071274092,4.2,177.23,177.21,2.8246]
[1730071274592,4.2,177.25,177.21,2.8246]
[1730071274897,4.2,177.25,177.16,3.6168]
[1730071275088,4.2,177.25,177.22,2.8245]
[1730071275389,4.2,177.25,177.16,3.6168]
[1730071276185,4.2,177.25,177.21,2.8246]
[1730071276391,4.2,177.25,177.16,3.6168]
[1730071276582,4.2,177.26,177.16,3.6168]
[1730071276786,4.2,177.26,177.23,2.8242]
[1730071276981,55.7551,177.33,177.16,3.6168]
[1730071276982,4.2,177.27,177.16,3.6168]
[1730071277193,4.2,177.28,177.16,3.6168]
[1730071278686,4.2,177.28,177.25,2.8239]
[1730071279588,4.2,177.28,177.19,4.2]
[1730071279589,4.2,177.44,177.23,4.2]
[1730071279793,5.3987,177.43,177.24,3.7625]
[1730071280091,4.2,177.42,177.24,3.7625]
[1730071280291,2.8219,177.39,177.24,3.7625]
[1730071280788,2.8217,177.4,177.29,2.8234]
[1730071280995,2.8217,177.4,177.3,4.2]
[1730071281297,4.2,177.42,177.31,4.2]
[1730071281495,2.8219,177.39,177.34,2.8225]
[1730071281999,2.8219,177.39,177.31,4.2]
[1730071282294,2.8219,177.39,177.35,2.8224]
[1730071285798,4.2,177.42,177.35,2.8224]
[1730071286397,2.822,177.39,177.35,2.8224]
[1730071286601,4.2,177.42,177.34,2.8226]
[1730071286991,2.8221,177.38,177.34,2.8226]
[1730071289705,2.8221,177.38,177.31,4.2]
[1730071290395,2.8221,177.38,177.34,2.8225]
[1730071291100,2.5501,177.41,177.32,2.8229]
[1730071291491,2.5501,177.41,177.24,3.7625]
[1730071291693,2.5501,177.41,177.29,2.8234]
[1730071292095,2.8221,177.38,177.29,2.8234]
[1730071292297,4.2,177.37,177.29,2.8234]
[1730071292791,2.8229,177.33,177.29,2.8234]
[1730071292992,4.2,177.37,177.29,2.8234]
[1730071293193,4.2,177.37,177.24,3.7625]
[1730071293398,4.2,177.37,177.27,2.8236]
[1730071294493,2.8232,177.31,177.28,2.8236]
[1730071295699,4.2,177.37,177.25,4.2]
[1730071295906,2.823,177.32,177.25,4.2]
[1730071296202,4.2,177.37,177.24,3.7625]
[1730071296397,2.8229,177.33,177.25,4.2]
[1730071296902,2.8229,177.33,177.3,2.8232]
[1730071300500,2.823,177.32,177.29,2.8233]
[1730071300698,4.2,177.37,177.26,4.2]
[1730071301404,2.8229,177.33,177.3,2.8232]
[1730071303206,2.823,177.32,177.3,2.8232]
[1730071306900,4.2,177.37,177.28,2.8235]
[1730071307409,2.8233,177.31,177.28,2.8235]
[1730071308803,2.8233,177.31,177.24,7.9825]
[1730071309306,2.8232,177.31,177.24,7.9825]
[1730071309899,2.8232,177.31,177.28,2.8234]
[1730071310905,2.8232,177.31,177.29,2.8234]
[1730071314015,4.22,177.33,177.24,7.9825]
[1730071314205,4.22,177.33,177.22,5.649]
[1730071315311,2.8232,177.31,177.22,5.649]
[1730071315816,2.8232,177.31,177.24,2.8241]
[1730071316017,2.8232,177.31,177.22,5.649]
[1730071316402,2.8232,177.31,177.29,2.8234]
[1730071321515,2.8231,177.32,177.29,2.8234]
[1730071323316,4.22,177.33,177.22,5.649]
[1730071323520,7.0428,177.33,177.31,2.8231]
[1730071323715,4.22,177.33,177.22,5.649]
[1730071324112,2.823,177.32,177.29,2.8233]
[1730071324925,2.8229,177.33,177.3,2.8231]
[1730071325115,7.0429,177.33,177.3,2.8231]
[1730071325423,4.22,177.33,177.3,2.8231]
[1730071326323,2.823,177.32,177.3,2.8231]
[1730071328124,2.823,177.32,177.24,1.2019]
[1730071328326,4.22,177.33,177.24,1.2019]
[1730071328519,2.8232,177.31,177.24,1.2019]
[1730071328823,4.22,177.33,177.28,2.8235]
[1730071329223,2.8237,177.28,177.24,1.2019]
[1730071329423,2.8237,177.28,177.25,2.824]
[1730071329633,4.22,177.29,177.24,1.2019]
[1730071330019,4.22,177.29,177.24,4.026]
[1730071330521,2.8239,177.27,177.25,2.824]
[1730071331523,2.8242,177.25,177.22,2.8244]
[1730071332330,2.8242,177.25,177.23,2.8244]
[1730071333828,2.8242,177.25,177.22,2.8245]
[1730071335526,2.8242,177.25,177.23,2.8244]
[1730071335831,6.9642,177.25,177.23,2.8244]
[1730071338232,6.9642,177.25,177.18,2.4332]
[1730071338527,6.9642,177.25,177.22,2.8245]
[1730071338734,4.14,177.25,177.18,2.4332]
[1730071338930,4.14,177.25,177.2,2.8248]
[1730071339130,2.8245,177.23,177.2,2.8248]
[1730071339329,2.8245,177.23,177.18,2.4332]
[1730071339726,2.8245,177.23,177.19,2.8249]
[1730071339927,2.8245,177.23,177.18,2.4332]
[1730071340338,2.8245,177.23,177.2,2.8247]
[1730071341336,2.8245,177.23,177.18,2.4332]
[1730071341540,2.8245,177.23,177.21,2.8247]
[1730071345339,6.9642,177.25,177.22,2.8245]
[1730071349845,4.14,177.25,177.18,2.4332]
[1730071350052,6.964,177.26,177.23,2.8243]
[1730071350238,2.824,177.26,177.23,2.8243]
[1730071353350,4.14,177.27,177.23,2.8243]
[1730071353551,2.8241,177.25,177.23,2.8243]
[1730071354650,2.84334089,177.35,177.21,4.14]
[1730071354853,54.88,177.36,177.28,2.8236]
[1730071354854,4.14,177.34,177.28,2.8236]
[1730071356349,2.8233,177.3,177.28,2.8236]
[1730071360756,2.8233,177.3,177.27,2.8237]
[1730071369774,4.14,177.34,177.25,2.8239]
[1730071370364,2.8235,177.29,177.26,2.8239]
[1730071376377,4.08,177.31,177.3,2.8233]
[1730071376978,1.1638,177.38,177.3,2.8233]
[1730071377277,1.1638,177.38,177.31,2.8231]
[1730071377569,4.08,177.37,177.31,2.8231]
[1730071378377,2.8228,177.33,177.31,2.8231]
[1730071378575,2.8228,177.33,177.3,2.8231]
[1730071378877,2.8228,177.33,177.26,3.6437]
[1730071381174,2.8228,177.33,177.3,2.8232]
[1730071382074,2.8228,177.33,177.31,2.8231]
[1730071382275,2.8227,177.34,177.31,2.8231]
[1730071382469,4.08,177.38,177.26,3.6437]
[1730071382669,2.8223,177.37,177.34,2.8226]
[1730071382868,4.08,177.38,177.29,4.08]
[1730071383272,6.9022,177.38,177.34,2.8225]
[1730071383972,2.8222,177.37,177.34,2.8225]
[1730071387378,2.822,177.39,177.29,4.08]
[1730071387679,4.08,177.4,177.29,4.08]
[1730071388178,2.8221,177.38,177.35,2.8224]
[1730071388378,4.08,177.4,177.29,4.08]
[1730071388971,2.8222,177.37,177.34,2.8226]
[1730071392376,4.08,177.4,177.29,4.08]
[1730071393082,2.8221,177.38,177.35,2.8224]
[1730071393283,4.08,177.4,177.29,4.08]
[1730071393980,2.822,177.39,177.36,2.8222]
[1730071394183,240.06404006,177.46,177.33,4.04]
[1730071394378,2.8212,177.43,177.4,2.8215]
[1730071396890,4.04,177.45,177.34,9.3843]
[1730071397386,2.8212,177.44,177.4,2.8216]
[1730071397587,4.04,177.45,177.4,2.8216]
[1730071399290,2.8213,177.43,177.4,2.8216]
[1730071403887,2.8211,177.44,177.42,2.8214]
[1730071404186,4.04,177.45,177.42,2.8214]
[1730071404587,6.8607,177.47,177.37,4.04]
[1730071404784,4.04,177.47,177.37,4.04]
[1730071404988,4.04,177.49,177.37,4.04]
[1730071405182,58.5385,177.51,177.37,4.04]
[1730071405386,4.04,177.5,177.37,4.04]
[1730071405588,2.8206,177.47,177.37,4.04]
[1730071406092,2.4622,177.51,177.45,2.8209]
[1730071406395,4.04,177.53,177.41,4.04]
[1730071406590,4.04,177.53,177.42,3.6535]
[1730071407287,6.8597,177.53,177.5,2.82]
[1730071407884,2.8198,177.52,177.49,2.8202]
[1730071411695,4.04,177.53,177.42,3.6535]
[1730071411891,4.04,177.53,177.43,4.04]
[1730071412290,2.8203,177.49,177.46,2.8207]
[1730071413291,2.8203,177.49,177.47,2.8205]
[1730071413495,4.04,177.53,177.43,4.04]
[1730071413793,2.82,177.51,177.43,4.04]
[1730071414097,2.82,177.51,177.48,2.8203]
[1730071414399,2.82,177.51,177.43,4.04]
[1730071414588,2.82,177.51,177.48,2.8203]
[1730071414796,2.82,177.51,177.43,4.04]
[1730071415300,2.8199,177.52,177.49,2.8201]
[1730071418493,4.04,177.53,177.43,4.04]
[1730071418694,2.8201,177.5,177.43,4.04]
[1730071418993,4.04,177.53,177.43,4.04]
[1730071419498,2.8199,177.52,177.49,2.8202]
[1730071421701,4.04,177.53,177.43,4.04]
[1730071422201,2.82,177.51,177.48,2.8203]
[1730071424597,2.8202,177.5,177.47,2.8206]
[1730071424799,4.04,177.53,177.47,2.8206]
[1730071425200,4.04,177.53,177.45,2.8208]
[1730071425595,2.8201,177.5,177.42,3.6535]
[1730071425798,1.2414,177.52,177.44,2.821]
[1730071426403,2.8207,177.47,177.44,2.821]
[1730071428401,4.02,177.49,177.42,1.1791]
[1730071428704,2.8212,177.44,177.41,2.8214]
[1730071429300,4.02,177.49,177.38,4.02]
[1730071429606,4.02,177.49,177.37,5.1883]
[1730071430006,2.8212,177.44,177.41,2.8214]
[1730071430495,4.02,177.49,177.41,2.8214]
[1730071432711,2.8211,177.44,177.41,2.8214]
[1730071433803,4.02,177.45,177.37,1.1683]
[1730071434110,2.8216,177.41,177.38,2.8219]
[1730071436611,2.8216,177.41,177.39,2.8218]
[1730071443420,2.8215,177.42,177.39,2.8218]
[1730071447214,4.02,177.45,177.39,2.8218]
[1730071447418,2.8215,177.41,177.39,2.8218]
[1730071448120,4.02,177.45,177.39,2.8218]
[1730071448416,2.8214,177.42,177.38,2.8219]
[1730071448624,2.8214,177.42,177.37,1.1683]
[1730071449331,4.02,177.45,177.37,1.1683]
[1730071449920,2.8215,177.42,177.4,2.8216]
[1730071453120,2.8215,177.42,177.37,1.1683]
[1730071453323,2.8215,177.42,177.39,2.8218]
[1730071453921,4.02,177.45,177.37,1.1683]
[1730071454112,2.8217,177.4,177.37,2.8221]
[1730071454318,2.8217,177.4,177.34,6.481]
[1730071454820,2.8217,177.4,177.38,2.8219]
[1730071455024,2.8217,177.4,177.34,6.481]
[1730071455216,2.8218,177.39,177.34,6.481]
[1730071455416,4.02,177.45,177.35,2.8224]
[1730071455626,3.6775,177.44,177.35,2.8224]
[1730071455922,3.6775,177.44,177.34,2.8225]
[1730071456124,3.6775,177.44,177.32,1.2405]
[1730071456314,2.8223,177.37,177.34,2.8225]
[1730071457123,2.8223,177.37,177.35,2.8225]
[1730071459018,4.02,177.39,177.35,2.8225]
[1730071459220,2.8221,177.38,177.35,2.8225]
[1730071463315,2.8221,177.38,177.32,1.2405]
[1730071463921,4.02,177.39,177.32,1.2405]
[1730071464224,4.02,177.41,177.32,1.2405]
[1730071464921,1.2449,177.48,177.32,1.2405]
[1730071465128,4.02,177.47,177.33,10.59710458]
[1730071465423,4.02,177.47,177.34,4.02]
[1730071465424,2.8211,177.44,177.34,4.02]
[1730071466119,2.8211,177.44,177.41,2.8214]
[1730071466519,2.8212,177.43,177.41,2.8214]
[1730071467925,4.02,177.47,177.34,4.02]
[1730071468223,4.02,177.47,177.37,2.8221]
[1730071469018,2.8218,177.4,177.37,2.8221]
[1730071470028,2.8219,177.39,177.37,2.8221]
[1730071470827,2.8219,177.39,177.34,4.02]
[1730071471029,2.8219,177.39,177.36,2.8223]